[Event "Titled Tuesday Blitz May 30 Late 2023"]
[White "Vachier-Lagrave, Maxime"]
[Black "Holt, Conrad"]
[WhiteFideId "623539"]
[BlackFideId "2034387"]
[WhiteElo "2723"]
[BlackElo "2592"]
[Result "0-1"]
[Round "07"]
[TimeControl "180+2"]
[Date "2023.05.31"]
[WhiteClock "0:01:12"]
[BlackClock "0:01:41"]

1. e4 {[%clk 0:02:59]}  e6 {[%clk 0:03:00]} 2. d4 {[%clk 0:02:59]}  d5 {[%clk 0:03:00]} 3. Nc3 {[%clk 0:03:00]}  Nf6 {[%clk 0:03:00]} 4. e5 {[%clk 0:02:59]}  Nfd7 {[%clk 0:03:00]} 5. f4 {[%clk 0:03:00]}  c5 {[%clk 0:03:01]} 6. Nf3 {[%clk 0:03:00]}  Nc6 {[%clk 0:03:01]} 7. Be3 {[%clk 0:03:01]}  cxd4 {[%clk 0:03:00]} 8. Nxd4 {[%clk 0:03:01]}  Bc5 {[%clk 0:03:00]} 9. Qd2 {[%clk 0:02:59]}  O-O {[%clk 0:03:00]} 10. O-O-O {[%clk 0:02:59]}  a6 {[%clk 0:03:01]} 11. h4 {[%clk 0:02:58]}  Nxd4 {[%clk 0:03:00]} 12. Bxd4 {[%clk 0:02:58]}  b5 {[%clk 0:03:01]} 13. h5 {[%clk 0:02:57]}  b4 {[%clk 0:03:01]} 14. Ne2 {[%clk 0:02:56]}  a5 {[%clk 0:03:01]} 15. Qe3 {[%clk 0:02:55]}  Qb6 {[%clk 0:02:58]} 16. Kb1 {[%clk 0:02:41]}  a4 {[%clk 0:02:54]} 17. Ng3 {[%clk 0:02:37]}  b3 {[%clk 0:02:45]} 18. cxb3 {[%clk 0:02:37]}  axb3 {[%clk 0:02:44]} 19. a3 {[%clk 0:02:38]}  Ra4 {[%clk 0:02:42]} 20. Bxc5 {[%clk 0:02:37]}  Nxc5 {[%clk 0:02:41]} 21. h6 {[%clk 0:02:28]}  g6 {[%clk 0:02:37]} 22. Nh5 {[%clk 0:02:26]}  Bb7 {[%clk 0:02:33]} 23. Nf6+ {[%clk 0:02:26]}  Kh8 {[%clk 0:02:32]} 24. Bd3 {[%clk 0:02:24]}  Qa5 {[%clk 0:02:22]} 25. Rd2 {[%clk 0:02:10]}  d4 {[%clk 0:02:14]} 26. Qe2 {[%clk 0:02:09]}  Ra8 {[%clk 0:02:10]} 27. Kc1 {[%clk 0:01:27]}  Rxa3 {[%clk 0:02:08]} 28. bxa3 {[%clk 0:01:28]}  Qc3+ {[%clk 0:02:08]} 29. Kb1 {[%clk 0:01:17]}  Rxa3 {[%clk 0:02:07]} 30. Rb2 {[%clk 0:01:18]}  Nxd3 {[%clk 0:02:06]} 31. Qd2 {[%clk 0:01:11]}  Nxb2 {[%clk 0:01:53]} 32. Qxb2 {[%clk 0:01:12]}  Ba6 {[%clk 0:01:41]} 0-1


[Site "https://www.chess.com"]

[Event "Titled Tuesday Blitz May 30 Late 2023"]
[White "Pranav, V"]
[Black "Makarian, Rudik"]
[WhiteFideId "25060783"]
[BlackFideId "44105681"]
[WhiteElo "2515"]
[BlackElo "2461"]
[Result "1/2-1/2"]
[Round "07"]
[TimeControl "180+2"]
[Date "2023.05.31"]
[WhiteClock "0:00:04"]
[BlackClock "0:00:06"]

1. e4 {[%clk 0:03:00]}  c5 {[%clk 0:03:00]} 2. Nf3 {[%clk 0:03:01]}  Nc6 {[%clk 0:03:01]} 3. Bb5 {[%clk 0:03:01]}  e6 {[%clk 0:03:01]} 4. Bxc6 {[%clk 0:03:01]}  bxc6 {[%clk 0:03:02]} 5. d3 {[%clk 0:03:01]}  Bd6 {[%clk 0:03:02]} 6. O-O {[%clk 0:03:01]}  Ne7 {[%clk 0:03:02]} 7. Nbd2 {[%clk 0:02:59]}  Bc7 {[%clk 0:03:00]} 8. Nb3 {[%clk 0:02:59]}  e5 {[%clk 0:02:55]} 9. Nxc5 {[%clk 0:02:58]}  O-O {[%clk 0:02:54]} 10. c3 {[%clk 0:02:49]}  d6 {[%clk 0:02:52]} 11. Nb3 {[%clk 0:02:50]}  f5 {[%clk 0:02:50]} 12. h3 {[%clk 0:02:47]}  Ng6 {[%clk 0:02:39]} 13. Re1 {[%clk 0:02:41]}  d5 {[%clk 0:02:13]} 14. Bg5 {[%clk 0:02:37]}  Qd6 {[%clk 0:02:11]} 15. c4 {[%clk 0:02:28]}  h6 {[%clk 0:02:05]} 16. Be3 {[%clk 0:02:24]}  d4 {[%clk 0:02:03]} 17. Bd2 {[%clk 0:02:12]}  c5 {[%clk 0:02:03]} 18. a3 {[%clk 0:01:57]}  Rf7 {[%clk 0:01:52]} 19. Nc1 {[%clk 0:01:43]}  fxe4 {[%clk 0:01:42]} 20. dxe4 {[%clk 0:01:42]}  Bxh3 {[%clk 0:01:42]} 21. gxh3 {[%clk 0:01:32]}  Raf8 {[%clk 0:01:42]} 22. Nh2 {[%clk 0:01:33]}  Rxf2 {[%clk 0:01:40]} 23. Ng4 {[%clk 0:01:31]}  R2f3 {[%clk 0:01:34]} 24. Nh2 {[%clk 0:00:54]}  Rxh3 {[%clk 0:00:49]} 25. Qg4 {[%clk 0:00:54]}  Rh4 {[%clk 0:00:49]} 26. Qg3 {[%clk 0:00:54]}  Qe6 {[%clk 0:00:48]} 27. Nd3 {[%clk 0:00:53]}  Rh3 {[%clk 0:00:46]} 28. Qg2 {[%clk 0:00:48]}  Rxd3 {[%clk 0:00:45]} 29. Rf1 {[%clk 0:00:48]}  Rxf1+ {[%clk 0:00:36]} 30. Rxf1 {[%clk 0:00:49]}  Nh4 {[%clk 0:00:34]} 31. Qf2 {[%clk 0:00:45]}  Qh3 {[%clk 0:00:31]} 32. Be1 {[%clk 0:00:39]}  Ng6 {[%clk 0:00:20]} 33. Qf7+ {[%clk 0:00:30]}  Kh7 {[%clk 0:00:20]} 34. Qxc7 {[%clk 0:00:31]}  Qe3+ {[%clk 0:00:20]} 35. Bf2 {[%clk 0:00:16]}  Qxe4 {[%clk 0:00:20]} 36. Re1 {[%clk 0:00:16]}  Qf5 {[%clk 0:00:18]} 37. Qc6 {[%clk 0:00:16]}  Nf4 {[%clk 0:00:18]} 38. Qe4 {[%clk 0:00:14]}  Kg6 {[%clk 0:00:17]} 39. Qc6+ {[%clk 0:00:08]}  Kh7 {[%clk 0:00:15]} 40. Qe4 {[%clk 0:00:08]}  Qxe4 {[%clk 0:00:13]} 41. Rxe4 {[%clk 0:00:08]}  Rd2 {[%clk 0:00:13]} 42. Be1 {[%clk 0:00:03]}  Rg2+ {[%clk 0:00:12]} 43. Kh1 {[%clk 0:00:03]}  Rxb2 {[%clk 0:00:13]} 44. Rxe5 {[%clk 0:00:02]}  Nd3 {[%clk 0:00:13]} 45. Re8 {[%clk 0:00:02]}  Rc2 {[%clk 0:00:12]} 46. Nf3 {[%clk 0:00:02]}  Rxc4 {[%clk 0:00:13]} 47. Kg2 {[%clk 0:00:02]}  Rc2+ {[%clk 0:00:12]} 48. Kg3 {[%clk 0:00:02]}  Ra2 {[%clk 0:00:12]} 49. Rc8 {[%clk 0:00:01]}  Rxa3 {[%clk 0:00:12]} 50. Kg4 {[%clk 0:00:02]}  Ra1 {[%clk 0:00:11]} 51. Bg3 {[%clk 0:00:02]}  a5 {[%clk 0:00:12]} 52. Nh4 {[%clk 0:00:02]}  a4 {[%clk 0:00:11]} 53. Kh5 {[%clk 0:00:02]}  Rh1 {[%clk 0:00:10]} 54. Kg4 {[%clk 0:00:02]}  a3 {[%clk 0:00:10]} 55. Ra8 {[%clk 0:00:02]}  Ra1 {[%clk 0:00:11]} 56. Kh5 {[%clk 0:00:03]}  Rh1 {[%clk 0:00:08]} 57. Rxa3 {[%clk 0:00:02]}  Nb4 {[%clk 0:00:09]} 58. Ra8 {[%clk 0:00:03]}  Nd5 {[%clk 0:00:09]} 59. Kg4 {[%clk 0:00:02]}  Ne3+ {[%clk 0:00:08]} 60. Kf3 {[%clk 0:00:03]}  Rf1+ {[%clk 0:00:07]} 61. Ke4 {[%clk 0:00:02]}  Rg1 {[%clk 0:00:06]} 62. Bf2 {[%clk 0:00:02]}  Rg5 {[%clk 0:00:05]} 63. Bxe3 {[%clk 0:00:02]}  Rg4+ {[%clk 0:00:04]} 64. Kd5 {[%clk 0:00:01]}  dxe3 {[%clk 0:00:04]} 65. Nf3 {[%clk 0:00:01]}  Rf4 {[%clk 0:00:04]} 66. Ne1 {[%clk 0:00:01]}  e2 {[%clk 0:00:03]} 67. Re8 {[%clk 0:00:01]}  Rd4+ {[%clk 0:00:03]} 68. Kxc5 {[%clk 0:00:01]}  Rd2 {[%clk 0:00:04]} 69. Kc4 {[%clk 0:00:01]}  Kg6 {[%clk 0:00:03]} 70. Kc3 {[%clk 0:00:02]}  Ra2 {[%clk 0:00:04]} 71. Kd3 {[%clk 0:00:02]}  Kg5 {[%clk 0:00:04]} 72. Ke3 {[%clk 0:00:03]}  Kg4 {[%clk 0:00:03]} 73. Kf2 {[%clk 0:00:03]}  g5 {[%clk 0:00:04]} 74. Re4+ {[%clk 0:00:03]}  Kf5 {[%clk 0:00:04]} 75. Re8 {[%clk 0:00:04]}  h5 {[%clk 0:00:04]} 76. Nf3 {[%clk 0:00:04]}  Kg4 {[%clk 0:00:04]} 77. Re4+ {[%clk 0:00:03]}  Kf5 {[%clk 0:00:04]} 78. Re8 {[%clk 0:00:04]}  g4 {[%clk 0:00:04]} 79. Nd4+ {[%clk 0:00:04]}  Kg5 {[%clk 0:00:04]} 80. Nxe2 {[%clk 0:00:05]}  h4 {[%clk 0:00:04]} 81. Re3 {[%clk 0:00:05]}  h3 {[%clk 0:00:03]} 82. Kg3 {[%clk 0:00:05]}  Ra5 {[%clk 0:00:03]} 83. Nf4 {[%clk 0:00:03]}  Rf5 {[%clk 0:00:03]} 84. Ne6+ {[%clk 0:00:03]}  Kf6 {[%clk 0:00:03]} 85. Nd4 {[%clk 0:00:04]}  Re5 {[%clk 0:00:03]} 86. Ra3 {[%clk 0:00:03]}  Re4 {[%clk 0:00:04]} 87. Nc2 {[%clk 0:00:03]}  Kg5 {[%clk 0:00:02]} 88. Ra5+ {[%clk 0:00:03]}  Kf6 {[%clk 0:00:02]} 89. Ra3 {[%clk 0:00:04]}  Re2 {[%clk 0:00:02]} 90. Ne3 {[%clk 0:00:04]}  h2 {[%clk 0:00:01]} 91. Nxg4+ {[%clk 0:00:05]}  Ke7 {[%clk 0:00:02]} 92. Nxh2 {[%clk 0:00:06]}  Ke8 {[%clk 0:00:03]} 93. Nf3 {[%clk 0:00:06]}  Rb2 {[%clk 0:00:02]} 94. Kf4 {[%clk 0:00:07]}  Rb1 {[%clk 0:00:03]} 95. Ke5 {[%clk 0:00:07]}  Rd1 {[%clk 0:00:03]} 96. Ke6 {[%clk 0:00:07]}  Kd8 {[%clk 0:00:02]} 97. Ra7 {[%clk 0:00:07]}  Kc8 {[%clk 0:00:02]} 98. Ne5 {[%clk 0:00:07]}  Rd2 {[%clk 0:00:03]} 99. Nc4 {[%clk 0:00:06]}  Re2+ {[%clk 0:00:02]} 100. Kd6 {[%clk 0:00:06]}  Re1 {[%clk 0:00:02]} 101. Rh7 {[%clk 0:00:05]}  Rd1+ {[%clk 0:00:01]} 102. Kc6 {[%clk 0:00:05]}  Kd8 {[%clk 0:00:02]} 103. Ne5 {[%clk 0:00:03]}  Ke8 {[%clk 0:00:02]} 104. Nc4 {[%clk 0:00:02]}  Kf8 {[%clk 0:00:02]} 105. Kc5 {[%clk 0:00:03]}  Rd2 {[%clk 0:00:03]} 106. Ra7 {[%clk 0:00:04]}  Rd1 {[%clk 0:00:03]} 107. Rb7 {[%clk 0:00:04]}  Rd3 {[%clk 0:00:03]} 108. Ne5 {[%clk 0:00:04]}  Rd1 {[%clk 0:00:04]} 109. Nc6 {[%clk 0:00:03]}  Ke8 {[%clk 0:00:02]} 110. Nd4 {[%clk 0:00:03]}  Kf8 {[%clk 0:00:02]} 111. Kd5 {[%clk 0:00:04]}  Ke8 {[%clk 0:00:03]} 112. Ke6 {[%clk 0:00:04]}  Re1+ {[%clk 0:00:03]} 113. Kd6 {[%clk 0:00:04]}  Kf8 {[%clk 0:00:04]} 114. Ne6+ {[%clk 0:00:04]}  Kg8 {[%clk 0:00:04]} 115. Rg7+ {[%clk 0:00:04]}  Kh8 {[%clk 0:00:04]} 116. Rg2 {[%clk 0:00:05]}  Kh7 {[%clk 0:00:04]} 117. Ke7 {[%clk 0:00:05]}  Rf1 {[%clk 0:00:05]} 118. Rg4 {[%clk 0:00:04]}  Kh6 {[%clk 0:00:04]} 119. Nf4 {[%clk 0:00:04]}  Ra1 {[%clk 0:00:04]} 120. Kf6 {[%clk 0:00:05]}  Ra6+ {[%clk 0:00:04]} 121. Kf7 {[%clk 0:00:05]}  Ra7+ {[%clk 0:00:04]} 122. Kf6 {[%clk 0:00:05]}  Ra6+ {[%clk 0:00:04]} 123. Ne6 {[%clk 0:00:06]}  Kh5 {[%clk 0:00:05]} 124. Re4 {[%clk 0:00:06]}  Rb6 {[%clk 0:00:05]} 125. Kf7 {[%clk 0:00:05]}  Rb7+ {[%clk 0:00:05]} 126. Kg8 {[%clk 0:00:05]}  Rb8+ {[%clk 0:00:05]} 127. Kg7 {[%clk 0:00:05]}  Rb7+ {[%clk 0:00:05]} 128. Kf6 {[%clk 0:00:06]}  Rb6 {[%clk 0:00:06]} 129. Rc4 {[%clk 0:00:05]}  Ra6 {[%clk 0:00:06]} 130. Re4 {[%clk 0:00:04]}  Rb6 {[%clk 0:00:06]} 1/2-1/2


[Site "https://www.chess.com"]

[Event "Titled Tuesday Blitz May 30 Late 2023"]
[White "Moroni, Luca Jr"]
[Black "Bluebaum, Matthias"]
[WhiteFideId "865834"]
[BlackFideId "24651516"]
[WhiteElo "2569"]
[BlackElo "2639"]
[Result "0-1"]
[Round "07"]
[TimeControl "180+2"]
[Date "2023.05.31"]
[WhiteClock "0:00:14"]
[BlackClock "0:00:06"]

1. c4 {[%clk 0:03:00]}  e6 {[%clk 0:02:59]} 2. g3 {[%clk 0:03:01]}  d5 {[%clk 0:03:00]} 3. Bg2 {[%clk 0:03:02]}  Nf6 {[%clk 0:03:00]} 4. Nf3 {[%clk 0:03:02]}  Nc6 {[%clk 0:03:01]} 5. d3 {[%clk 0:03:02]}  Bd6 {[%clk 0:03:01]} 6. Nbd2 {[%clk 0:03:01]}  O-O {[%clk 0:03:01]} 7. O-O {[%clk 0:03:01]}  h6 {[%clk 0:03:02]} 8. a3 {[%clk 0:02:58]}  a5 {[%clk 0:03:02]} 9. e3 {[%clk 0:02:57]}  b6 {[%clk 0:02:50]} 10. b3 {[%clk 0:02:57]}  Qe7 {[%clk 0:02:42]} 11. Bb2 {[%clk 0:02:53]}  Rd8 {[%clk 0:02:42]} 12. Qc2 {[%clk 0:02:52]}  Bb7 {[%clk 0:02:42]} 13. Rfe1 {[%clk 0:02:52]}  Rac8 {[%clk 0:02:41]} 14. Bc3 {[%clk 0:02:46]}  Bxa3 {[%clk 0:02:36]} 15. Bxf6 {[%clk 0:02:16]}  gxf6 {[%clk 0:02:37]} 16. d4 {[%clk 0:02:16]}  Bb4 {[%clk 0:02:32]} 17. Rec1 {[%clk 0:02:13]}  dxc4 {[%clk 0:02:25]} 18. Nxc4 {[%clk 0:02:11]}  Nb8 {[%clk 0:02:18]} 19. Qe2 {[%clk 0:02:07]}  Nd7 {[%clk 0:02:10]} 20. e4 {[%clk 0:02:01]}  Nf8 {[%clk 0:02:08]} 21. Qe3 {[%clk 0:02:00]}  Kg7 {[%clk 0:02:04]} 22. h4 {[%clk 0:01:59]}  f5 {[%clk 0:01:31]} 23. Nh2 {[%clk 0:01:42]}  h5 {[%clk 0:01:04]} 24. Ne5 {[%clk 0:01:28]}  fxe4 {[%clk 0:00:55]} 25. Bxe4 {[%clk 0:01:28]}  Bxe4 {[%clk 0:00:55]} 26. Qxe4 {[%clk 0:01:29]}  Qf6 {[%clk 0:00:53]} 27. Nhf3 {[%clk 0:01:25]}  Ng6 {[%clk 0:00:49]} 28. Rc6 {[%clk 0:01:08]}  Nxe5 {[%clk 0:00:42]} 29. dxe5 {[%clk 0:01:00]}  Qg6 {[%clk 0:00:39]} 30. Qf4 {[%clk 0:00:54]}  Rd3 {[%clk 0:00:31]} 31. Rac1 {[%clk 0:00:49]}  Bc5 {[%clk 0:00:28]} 32. Ng5 {[%clk 0:00:39]}  Rxb3 {[%clk 0:00:25]} 33. Rd1 {[%clk 0:00:37]}  Rb1 {[%clk 0:00:22]} 34. Qf3 {[%clk 0:00:32]}  Rxd1+ {[%clk 0:00:18]} 35. Qxd1 {[%clk 0:00:31]}  Qf5 {[%clk 0:00:16]} 36. Qd2 {[%clk 0:00:14]}  Rd8 {[%clk 0:00:14]} 37. Nxe6+ {[%clk 0:00:12]}  fxe6 {[%clk 0:00:08]} 38. Rxc7+ {[%clk 0:00:12]}  Kg6 {[%clk 0:00:08]} 39. Qe2 {[%clk 0:00:12]}  Qxf2+ {[%clk 0:00:05]} 40. Qxf2 {[%clk 0:00:12]}  Bxf2+ {[%clk 0:00:06]} 41. Kxf2 {[%clk 0:00:13]}  Ra8 {[%clk 0:00:05]} 42. Kf3 {[%clk 0:00:12]}  a4 {[%clk 0:00:05]} 43. Kf4 {[%clk 0:00:13]}  a3 {[%clk 0:00:05]} 44. Rc6 {[%clk 0:00:13]}  a2 {[%clk 0:00:06]} 45. Rxe6+ {[%clk 0:00:14]}  Kg7 {[%clk 0:00:06]} 0-1


[Site "https://www.chess.com"]

[Event "Titled Tuesday Blitz May 30 Late 2023"]
[White "Maurizzi, Marc`Andria"]
[Black "Demidov, Mikhail"]
[WhiteFideId "36083534"]
[BlackFideId "4197143"]
[WhiteElo "2421"]
[BlackElo "2500"]
[Result "0-1"]
[Round "07"]
[TimeControl "180+2"]
[Date "2023.05.31"]
[WhiteClock "0:00:38"]
[BlackClock "0:00:17"]

1. e4 {[%clk 0:03:00]}  g6 {[%clk 0:02:59]} 2. d4 {[%clk 0:03:00]}  Bg7 {[%clk 0:03:00]} 3. Nf3 {[%clk 0:03:01]}  d6 {[%clk 0:03:00]} 4. Nc3 {[%clk 0:02:49]}  a6 {[%clk 0:02:59]} 5. a4 {[%clk 0:02:48]}  Nf6 {[%clk 0:02:57]} 6. h3 {[%clk 0:02:48]}  O-O {[%clk 0:02:56]} 7. Be2 {[%clk 0:02:47]}  Nc6 {[%clk 0:02:57]} 8. O-O {[%clk 0:02:46]}  e5 {[%clk 0:02:57]} 9. dxe5 {[%clk 0:02:36]}  dxe5 {[%clk 0:02:57]} 10. Bg5 {[%clk 0:02:35]}  Be6 {[%clk 0:02:55]} 11. Nd5 {[%clk 0:02:33]}  Bxd5 {[%clk 0:02:44]} 12. Bxf6 {[%clk 0:02:30]}  Bxf6 {[%clk 0:02:39]} 13. exd5 {[%clk 0:02:21]}  Nb4 {[%clk 0:02:37]} 14. Bc4 {[%clk 0:02:15]}  e4 {[%clk 0:02:35]} 15. Nd2 {[%clk 0:02:14]}  Re8 {[%clk 0:02:28]} 16. c3 {[%clk 0:02:14]}  Nxd5 {[%clk 0:02:18]} 17. Nxe4 {[%clk 0:02:13]}  Nb6 {[%clk 0:02:05]} 18. Qf3 {[%clk 0:01:47]}  Kg7 {[%clk 0:01:46]} 19. Bb3 {[%clk 0:01:46]}  Qe7 {[%clk 0:01:18]} 20. Rfe1 {[%clk 0:01:41]}  Be5 {[%clk 0:01:01]} 21. a5 {[%clk 0:01:11]}  Nd7 {[%clk 0:01:02]} 22. Rad1 {[%clk 0:01:10]}  Rad8 {[%clk 0:00:57]} 23. Ng3 {[%clk 0:00:53]}  Nc5 {[%clk 0:00:49]} 24. Rxd8 {[%clk 0:00:52]}  Rxd8 {[%clk 0:00:47]} 25. Ba2 {[%clk 0:00:42]}  Qf6 {[%clk 0:00:40]} 26. Qxf6+ {[%clk 0:00:42]}  Kxf6 {[%clk 0:00:31]} 27. Nf1 {[%clk 0:00:43]}  Nd3 {[%clk 0:00:23]} 28. Rd1 {[%clk 0:00:38]}  Rd6 {[%clk 0:00:23]} 29. Rd2 {[%clk 0:00:37]}  Bf4 {[%clk 0:00:20]} 30. Rc2 {[%clk 0:00:38]}  h5 {[%clk 0:00:17]} 31. g3 {[%clk 0:00:38]}  Bh6 {[%clk 0:00:17]} 32. Kg2 {[%clk 0:00:38]}  Ne1+ {[%clk 0:00:17]} 0-1


[Site "https://www.chess.com"]

[Event "Titled Tuesday Blitz May 30 Late 2023"]
[White "Hajiyev, Kanan"]
[Black "Ibarra Jerez, Jose Carlos"]
[WhiteFideId "13404148"]
[BlackFideId "2226332"]
[WhiteElo "2103"]
[BlackElo "2638"]
[Result "0-1"]
[Round "07"]
[TimeControl "180+2"]
[Date "2023.05.31"]
[WhiteClock "0:00:01"]
[BlackClock "0:00:16"]

1. d4 {[%clk 0:03:00]}  Nf6 {[%clk 0:02:59]} 2. Nf3 {[%clk 0:03:00]}  g6 {[%clk 0:02:59]} 3. g3 {[%clk 0:03:00]}  d6 {[%clk 0:03:00]} 4. Bg2 {[%clk 0:03:01]}  Bg7 {[%clk 0:03:00]} 5. O-O {[%clk 0:03:01]}  O-O {[%clk 0:03:01]} 6. b3 {[%clk 0:03:02]}  b5 {[%clk 0:03:01]} 7. a4 {[%clk 0:02:45]}  b4 {[%clk 0:03:00]} 8. Bb2 {[%clk 0:02:25]}  Bb7 {[%clk 0:03:00]} 9. Nbd2 {[%clk 0:02:19]}  Nbd7 {[%clk 0:03:01]} 10. Re1 {[%clk 0:02:18]}  c5 {[%clk 0:02:54]} 11. e4 {[%clk 0:02:08]}  cxd4 {[%clk 0:02:54]} 12. Nxd4 {[%clk 0:02:06]}  Qc7 {[%clk 0:02:48]} 13. Nc4 {[%clk 0:01:24]}  Rac8 {[%clk 0:02:44]} 14. Nb5 {[%clk 0:01:15]}  Qb8 {[%clk 0:02:44]} 15. Qd2 {[%clk 0:00:53]}  a6 {[%clk 0:02:32]} 16. Nd4 {[%clk 0:00:53]}  e5 {[%clk 0:02:20]} 17. Nf3 {[%clk 0:00:42]}  Nxe4 {[%clk 0:02:19]} 18. Qxb4 {[%clk 0:00:38]}  Qa7 {[%clk 0:01:08]} 19. Re2 {[%clk 0:00:29]}  Ndc5 {[%clk 0:01:01]} 20. Rd1 {[%clk 0:00:20]}  Rfd8 {[%clk 0:00:59]} 21. Qb6 {[%clk 0:00:19]}  Qa8 {[%clk 0:00:55]} 22. Na5 {[%clk 0:00:19]}  Bd5 {[%clk 0:00:50]} 23. c4 {[%clk 0:00:17]}  Rb8 {[%clk 0:00:46]} 24. Qxd8+ {[%clk 0:00:12]}  Rxd8 {[%clk 0:00:45]} 25. Rxd5 {[%clk 0:00:12]}  Qb8 {[%clk 0:00:39]} 26. Nc6 {[%clk 0:00:11]}  Qxb3 {[%clk 0:00:35]} 27. Nxd8 {[%clk 0:00:11]}  Qxc4 {[%clk 0:00:36]} 28. Rxc5 {[%clk 0:00:02]}  Qxe2 {[%clk 0:00:34]} 29. Rc8 {[%clk 0:00:01]}  h6 {[%clk 0:00:17]} 30. Bc1 {[%clk 0:00:01]}  Qd1+ {[%clk 0:00:16]} 31. Bf1 {[%clk 0:00:01]}  Qxf3 {[%clk 0:00:16]} 0-1


[Site "https://www.chess.com"]

[Event "Titled Tuesday Blitz May 30 Late 2023"]
[White "reevecanada"]
[Black "Deac, Bogdan-Daniel"]
[BlackFideId "1226380"]
[WhiteElo "2497"]
[BlackElo "2649"]
[Result "0-1"]
[Round "07"]
[TimeControl "180+2"]
[Date "2023.05.31"]
[WhiteClock "0:00:10"]
[BlackClock "0:01:06"]

1. e4 {[%clk 0:02:58]}  g6 {[%clk 0:02:59]} 2. Nf3 {[%clk 0:02:56]}  Bg7 {[%clk 0:02:59]} 3. d4 {[%clk 0:02:55]}  d6 {[%clk 0:02:57]} 4. c3 {[%clk 0:02:55]}  Nd7 {[%clk 0:02:56]} 5. Bd3 {[%clk 0:02:55]}  e5 {[%clk 0:02:56]} 6. O-O {[%clk 0:02:55]}  Ne7 {[%clk 0:02:56]} 7. h3 {[%clk 0:02:54]}  O-O {[%clk 0:02:56]} 8. Re1 {[%clk 0:02:54]}  h6 {[%clk 0:02:57]} 9. Nbd2 {[%clk 0:02:51]}  Nc6 {[%clk 0:02:55]} 10. Nb3 {[%clk 0:02:48]}  Re8 {[%clk 0:02:56]} 11. a3 {[%clk 0:02:46]}  a5 {[%clk 0:02:54]} 12. Bb5 {[%clk 0:02:37]}  a4 {[%clk 0:02:46]} 13. Bxc6 {[%clk 0:02:35]}  bxc6 {[%clk 0:02:46]} 14. Nbd2 {[%clk 0:02:35]}  exd4 {[%clk 0:02:46]} 15. cxd4 {[%clk 0:02:35]}  c5 {[%clk 0:02:45]} 16. d5 {[%clk 0:02:29]}  Nf6 {[%clk 0:02:42]} 17. Qc2 {[%clk 0:02:26]}  Qd7 {[%clk 0:02:31]} 18. Nc4 {[%clk 0:02:13]}  Qb5 {[%clk 0:02:30]} 19. Bd2 {[%clk 0:02:11]}  Qb3 {[%clk 0:02:29]} 20. Qxb3 {[%clk 0:02:05]}  axb3 {[%clk 0:02:27]} 21. e5 {[%clk 0:01:50]}  dxe5 {[%clk 0:02:11]} 22. Ncxe5 {[%clk 0:01:48]}  Bf5 {[%clk 0:01:50]} 23. Rac1 {[%clk 0:01:44]}  Bc2 {[%clk 0:01:50]} 24. Be3 {[%clk 0:01:31]}  Ne4 {[%clk 0:01:38]} 25. Nc4 {[%clk 0:01:23]}  Ra4 {[%clk 0:01:28]} 26. Rxc2 {[%clk 0:00:40]}  bxc2 {[%clk 0:01:26]} 27. b3 {[%clk 0:00:38]}  Rxc4 {[%clk 0:01:20]} 28. bxc4 {[%clk 0:00:36]}  Nc3 {[%clk 0:01:21]} 29. Bd2 {[%clk 0:00:26]}  Rxe1+ {[%clk 0:01:19]} 30. Nxe1 {[%clk 0:00:24]}  c1=Q {[%clk 0:01:19]} 31. Bxc1 {[%clk 0:00:24]}  Ne2+ {[%clk 0:01:19]} 32. Kf1 {[%clk 0:00:24]}  Nxc1 {[%clk 0:01:20]} 33. a4 {[%clk 0:00:20]}  Bc3 {[%clk 0:01:20]} 34. Nc2 {[%clk 0:00:19]}  Kf8 {[%clk 0:01:15]} 35. Na3 {[%clk 0:00:15]}  Ke7 {[%clk 0:01:15]} 36. Nb5 {[%clk 0:00:15]}  Ba5 {[%clk 0:01:15]} 37. f3 {[%clk 0:00:15]}  Nd3 {[%clk 0:01:12]} 38. Ke2 {[%clk 0:00:14]}  Nb2 {[%clk 0:01:13]} 39. Na3 {[%clk 0:00:13]}  Kd7 {[%clk 0:01:07]} 40. Ke3 {[%clk 0:00:12]}  Bb4 {[%clk 0:01:07]} 41. Nc2 {[%clk 0:00:10]}  Nxc4+ {[%clk 0:01:06]} 0-1


[Site "https://www.chess.com"]

[Event "Titled Tuesday Blitz May 30 Late 2023"]
[White "Naroditsky, Daniel"]
[Black "Halkias, Stelios"]
[WhiteFideId "2026961"]
[BlackFideId "4201809"]
[WhiteElo "2633"]
[BlackElo "2451"]
[Result "1-0"]
[Round "07"]
[TimeControl "180+2"]
[Date "2023.05.31"]
[WhiteClock "0:00:27"]
[BlackClock "0:00:32"]

1. e4 {[%clk 0:02:59]}  e5 {[%clk 0:02:58]} 2. Nf3 {[%clk 0:02:58]}  d6 {[%clk 0:02:59]} 3. Bc4 {[%clk 0:02:57]}  Be7 {[%clk 0:02:57]} 4. Nc3 {[%clk 0:02:52]}  Nf6 {[%clk 0:02:57]} 5. d4 {[%clk 0:02:48]}  exd4 {[%clk 0:02:57]} 6. Nxd4 {[%clk 0:02:48]}  O-O {[%clk 0:02:57]} 7. O-O {[%clk 0:02:38]}  Re8 {[%clk 0:02:57]} 8. Re1 {[%clk 0:02:36]}  Nbd7 {[%clk 0:02:57]} 9. Bg5 {[%clk 0:02:25]}  Ne5 {[%clk 0:02:56]} 10. Bb3 {[%clk 0:02:11]}  h6 {[%clk 0:02:56]} 11. Bf4 {[%clk 0:02:08]}  Ng6 {[%clk 0:02:52]} 12. Bg3 {[%clk 0:02:05]}  c6 {[%clk 0:02:51]} 13. a4 {[%clk 0:02:01]}  Bf8 {[%clk 0:02:43]} 14. h3 {[%clk 0:01:59]}  Qc7 {[%clk 0:02:41]} 15. Qd2 {[%clk 0:01:51]}  Bd7 {[%clk 0:02:38]} 16. Rad1 {[%clk 0:01:44]}  Rad8 {[%clk 0:02:37]} 17. Re3 {[%clk 0:01:36]}  Nh5 {[%clk 0:02:33]} 18. Rf3 {[%clk 0:01:34]}  Be6 {[%clk 0:01:55]} 19. Nxe6 {[%clk 0:01:29]}  fxe6 {[%clk 0:01:56]} 20. Bh2 {[%clk 0:01:29]}  Kh8 {[%clk 0:01:42]} 21. Rd3 {[%clk 0:01:23]}  e5 {[%clk 0:01:36]} 22. Ne2 {[%clk 0:01:08]}  Be7 {[%clk 0:01:34]} 23. Ng3 {[%clk 0:00:54]}  Bg5 {[%clk 0:01:27]} 24. Qe1 {[%clk 0:00:54]}  Nxg3 {[%clk 0:01:24]} 25. Bxg3 {[%clk 0:00:53]}  Rf8 {[%clk 0:01:22]} 26. Be6 {[%clk 0:00:48]}  Nf4 {[%clk 0:01:13]} 27. Bg4 {[%clk 0:00:45]}  Qe7 {[%clk 0:01:11]} 28. Bxf4 {[%clk 0:00:39]}  exf4 {[%clk 0:00:49]} 29. Qb4 {[%clk 0:00:34]}  Bf6 {[%clk 0:00:37]} 30. Rxd6 {[%clk 0:00:26]}  Be5 {[%clk 0:00:36]} 31. Rxh6+ {[%clk 0:00:26]}  gxh6 {[%clk 0:00:33]} 32. Qxe7 {[%clk 0:00:26]}  Rxd1+ {[%clk 0:00:32]} 33. Bxd1 {[%clk 0:00:27]} 1-0


[Site "https://www.chess.com"]